Cogmind - Beta 15 @@@ ROGUE MODE // 2025.05.30 @ 23:27:11 Player: amhumam Result: Destroyed by Y-54 Guardian with Flak Gun Performance ------------- Evolutions (0) 0 Regions Visited (3) 600 Robots Destroyed (26) 130 Value Destroyed (636) 636 Prototype IDs (11) 220 Alien Tech Used (0) 0 Bonus (0) 0 TOTAL SCORE: 1586 Bonus ------- None Cogmind --------- Core Integrity 0/250 Matter 252/300 Energy 240/250 System Corruption 0% Temperature Warm (178) Movement Core (500) Ox9 Location -7/Recycling Parts ------- > --- POWER (1) -------- Ion Engine > --- PROPULSION (2) --- (None) > --- UTILITY (2) ------ Large Storage Unit Core Shielding > --- WEAPON (2) ------- Rocket Launcher > --- INVENTORY (15) --- Ion Engine Heat Sink High-capacity Matter Pod (5) Subdweller Optics Terrain Scanner Gun Armor Authchip [Propulsion] Authchip [Propulsion] Authchip [Propulsion] Authchip [Processor] Flak Gun Rocket Launcher Mining Claw Peak State ------------ > --- POWER ------------ Ion Engine > --- PROPULSION ------- Light Treads Light Treads > --- UTILITY ---------- Large Storage Unit Core Shielding > --- WEAPON ----------- Plasma Cannon Rocket Launcher > --- INVENTORY -------- Ion Engine Heat Sink Subdweller Optics Signal Interpreter Terrain Scanner Terrain Scan Processor Gun Armor Authchip [Propulsion] Authchip [Propulsion] Authchip [Processor] Heavy Laser Subdweller Machine Gun Rocket Launcher Rocket Launcher Mining Claw [Rating: 15] Favorites ----------- Power Ion Engine Engine Ion Engine Propulsion Light Treads Treads Light Treads Utility Large Storage Unit Storage Large Storage Unit Protection Core Shielding Weapon Assault Rifle Energy Gun Heavy Laser Energy Cannon Plasma Cannon Ballistic Gun Assault Rifle Launcher Rocket Launcher Slashing Weapon Mining Claw Build | -11 -10 -10 -7 ------- Run | Yrd Mat Sub Rec Slots Evolved . | . . . . Power . | . . . . Propulsion . | . . . . Utility . | . . . . Weapon . | . . . . Parts Attached 22 | 6 6 6 4 Power 2 | 1 1 . . Engine 2 | 1 1 . . Core . | . . . . Reactor . | . . . . Propulsion 4 | 2 . 2 . Treads 4 | 2 . 2 . Leg . | . . . . Wheel . | . . . . Hover . | . . . . Flight . | . . . . Utility 4 | 1 3 . . Device . | . . . . Storage 3 | 1 2 . . Processor . | . . . . Hackware . | . . . . Protection 1 | . 1 . . Artifact . | . . . . Weapon 12 | 2 2 4 4 Energy Gun 1 | . . . 1 Energy Cannon 1 | . . . 1 Ballistic Gun 5 | 2 1 1 1 Ballistic Cannon . | . . . . Launcher 4 | . 1 2 1 Special Weapon . | . . . . Impact Weapon . | . . . . Slashing Weapon 1 | . . 1 . Piercing Weapon . | . . . . Special Melee Weapon . | . . . . Unidentified Prototypes . | . . . . Parts Lost 9 | . 1 2 6 Power 1 | . 1 . . Propulsion 4 | . . 2 2 Utility . | . . . . Weapon 4 | . . . 4 Highest Loss Streak 4 | . 1 1 4 To Critical Strikes . | . . . . Average Backups 11 | . 7 14 14 Power . | . . 1 1 Propulsion . | . 1 . . Utility 4 | . 1 5 8 Weapon 4 | . 3 8 5 Tool/Special . | . . . . Unused Backups 15 | . 1 . 14 Power 1 | . . . 1 Propulsion 1 | . 1 . . Utility 11 | . . . 11 Weapon 2 | . . . 2 Tool/Special . | . . . . Average Slot Usage (%) 94 | . 93 99 92 Engine 14 | . 14 14 14 Treads 27 | . 28 27 27 Storage 15 | . 16 14 14 Protection 9 | . 5 14 14 Energy Gun 2 | . . . 7 Ballistic Gun 15 | . 27 8 . Launcher 7 | . . 13 13 Slashing Weapon 1 | . . 5 . Peak Build Rating 15 | 6 8 11 15 Average Rating 8 | 4 6 9 12 On Entrance 6 | . 6 8 11 Naked Turns . | . . . . Heaviest Build 37 | 11 30 34 37 Greatest Support 40 | 40 40 40 40 Greatest Overweight (x) 1 | . . 1 . Average Overweight (x) . | . . . . Largest Inventory Capacity 15 | 8 15 15 15 Average Capacity 13 | 7 12 15 15 Most Carried 15 | 2 15 15 15 Average Carried 11 | . 7 14 14 Final Capacity 15 | 8 15 15 15 Final Carried 15 | 2 15 15 13 Class Distribution -------------------- 100% | Mutant Dominant Class ---------------- Mutant | -10/Materials Mutant | -10/Subcaves Mutant | -7/Recycling Resources | -11 -10 -10 -7 ----------- Run | Yrd Mat Sub Rec Matter Collected 872 | 258 290 86 238 Remotely . | . . . . Salvage Created 609 | . 455 89 65 Parts 54 | . 34 20 . Haulers Intercepted 2 | . 2 . . Recyclers Shooed . | . . . . Parts Field Recycled . | . . . . Retrieved Matter . | . . . . Parts Self-Destructed 9 | . . 9 . Prevented . | . . . . Kills | -11 -10 -10 -7 ------- Run | Yrd Mat Sub Rec Combat Hostiles Destroyed 22 | . 14 7 1 Guns 14 | . 10 3 1 AOE 8 | . 4 4 . Classes Destroyed 6 | . 3 2 1 Hauler 2 | . 2 . . Turret 2 | . . 2 . Swarmer 10 | . 6 4 . Grunt 8 | . 8 . . Sentry 1 | . . . 1 Subdweller 3 | . . 3 . Best Kill Streak 4 | . 4 4 1 Combat Bots Only 4 | . 4 4 1 Max Kills in Single Turn 3 | . 2 3 1 Gunslinging . | . . . . Exploded 2 | . 2 2 . Melee . | . . . . Uniques/NPCs Destroyed . | . . . . Combat | -11 -10 -10 -7 -------- Run | Yrd Mat Sub Rec Hostile Shots Fired 240 | . 51 72 117 Missed 86 | . 18 29 39 Hits 154 | . 33 43 78 Projectile 154 | . 33 43 78 Damage Taken 1445 | . 387 473 585 Core 252 | . 61 50 141 Absorbed by Shields . | . . . . Redirected to Shielding 40 | . . 9 31 Core Remaining (%) 100 | 100 . . . Volleys Fired 59 | . 28 22 9 Largest 2 | . 2 2 2 Hottest 110 | . 50 66 110 Shots Fired 106 | . 54 36 16 Gun 81 | . 51 18 12 Cannon 1 | . . . 1 Launcher 24 | . 3 18 3 Special . | . . . . Kinetic 73 | . 51 18 4 Thermal 9 | . . . 9 Explosive 24 | . 3 18 3 Electromagnetic . | . . . . Robot Hit Streak 10 | . 7 9 10 Robot Miss Streak 5 | . 5 2 1 Penetration Max . | . . . . Secondary Targets . | . . . . Shots Hit Robots 64 | . 29 21 14 Core Hits 55 | . 28 19 8 Critical Kills . | . . . . Critical Parts Destroyed . | . . . . Critical Strikes 1 | . . . 1 Burn 1 | . . . 1 Melee Attacks 6 | . . 6 . Impact . | . . . . Slashing 6 | . . 6 . Piercing . | . . . . Sneak Attacks . | . . . . Combat Hostiles . | . . . . Follow-up Attacks . | . . . . Damage Inflicted 1727 | . 617 751 359 Guns 788 | . 406 145 237 Cannons . | . . . . Explosions 939 | . 211 606 122 Melee . | . . . . Ramming . | . . . . Kinetic 631 | . 406 145 80 Thermal 157 | . . . 157 Explosive 939 | . 211 606 122 Electromagnetic . | . . . . Impact . | . . . . Slashing . | . . . . Piercing . | . . . . Highest Corruption . | . . . . Average Corruption . | . . . . Corruption Purged . | . . . . Corruption Blocked . | . . . . Overload Shots . | . . . . Overflow Damage . | . . . . Projectiles . | . . . . Explosions . | . . . . Melee . | . . . . Knockbacks . | . . . . Impact . | . . . . Kinetic . | . . . . Secondary . | . . . . Self-Inflicted Damage 44 | . . 16 28 Shots 3 | . . 2 1 Rammed . | . . . . Targets Rammed . | . . . . Kicked . | . . . . Crushed . | . . . . Highest Temperature 285 | . 18 . 285 Average Temperature 104 | . 5 . 135 Received Heat Transfer 537 | . 189 186 162 Siege Activations . | . . . . Martial Activations . | . . . . Shielding Activations . | . . . . Robots Disrupted . | . . . . Combat Hostiles . | . . . . Robots Corrupted . | . . . . Combat Hostiles . | . . . . Parts Fried . | . . . . Impact Corruptions . | . . . . Robots Melted . | . . . . Combat Hostiles . | . . . . Parts Melted . | . . . . Heat Transferred 370 | . . . 370 Parts Sabotaged . | . . . . Parts Stolen . | . . . . Parts Stripped . | . . . . Power Chain Reactions . | . . . . Alert | -11 -10 -10 -7 ------- Run | Yrd Mat Sub Rec Maximum Alert Level 1 | . 1 . . Low Security (%) 99 | 100 99 . 100 Level 1 . | . . . . Level 2 . | . . . . Level 3 . | . . . . Level 4 . | . . . . Level 5 . | . . . . High Security . | . . . . Max Security . | . . . . Peak Influence 196 | . 196 . 52 Initial 33 | . . . 33 Average 57 | . 89 . 8 Influence Increases 803 | . 464 195 144 Destroy 0b10 Robot/C 420 | . 280 120 20 Destroy 0b10 Robot/NC 10 | . 10 . . Destroy Leader 64 | . 64 . . Successful Hack 8 | . . . 8 Select Force Hacks 150 | . 60 . 90 Destroy Structure 46 | . 20 . 26 Lose Combat Pursuer 105 | . 30 75 . Influence Decreases 796 | . 464 126 206 Entered New Map 36 | . . . 36 Time Decay 699 | . 454 116 129 Lost Part 61 | . 10 10 41 Squads Dispatched 2 | . 2 . . Investigation 2 | . 2 . . Extermination . | . . . . Reinforcement . | . . . . Assault . | . . . . Garrison . | . . . . Intercept . | . . . . Searches Triggered . | . . . . Construction Impeded . | . . . . Haulers Reinforced . | . . . . Active Scanning Responses . | . . . . Cargo Convoy Interrupts . | . . . . Stealth | -11 -10 -10 -7 --------- Run | Yrd Mat Sub Rec Distress Signals 2 | . 2 . . Communications Jammed . | . . . . Distress Signals . | . . . . Times Spotted 39 | . 25 11 3 Peak Tracking Total 7 | . 7 5 2 Tactical Retreats 4 | . 2 2 . Traps | -11 -10 -10 -7 ------- Run | Yrd Mat Sub Rec Traps Triggered 3 | . 2 1 . Indirectly . | . . . . Trap Hack Attempts . | . . . . Triggered . | . . . . Disarmed . | . . . . Reprogrammed . | . . . . Reused . | . . . . Traps Extracted . | . . . . Installed . | . . . . Triggered . | . . . . Machines | -11 -10 -10 -7 ---------- Run | Yrd Mat Sub Rec Machines Disabled 5 | . . 5 . Max in Single Turn 3 | . . 3 . Machines Repaired . | . . . . Machines Dismantled . | . . . . Machines Sabotaged . | . . . . Overloaded Fab Kills . | . . . . Hacking | -11 -10 -10 -7 --------- Run | Yrd Mat Sub Rec Machines Accessed 9 | . 3 1 5 Terminals 3 | . 1 . 2 Fabricators . | . . . . Repair Stations . | . . . . Recycling Units 5 | . 2 . 3 Scanalyzers . | . . . . Garrison Access . | . . . . Total Hacks 20 | . 7 1 12 Successful 11 | . 4 1 6 Failed 9 | . 3 . 6 Catastrophic . | . . . . Database Lockouts . | . . . . Manual 13 | . 5 . 8 Terminals 7 | . 2 . 5 Fabricators . | . . . . Repair Stations . | . . . . Recycling Units 12 | . 5 . 7 Scanalyzers . | . . . . Garrison Access . | . . . . Terminal Hacks 2 | . . 1 1 Part Schematic 1 | . . . 1 Proto ID Catalog 1 | . . 1 . Fabricator Hacks . | . . . . Repair Station Hacks . | . . . . Recycling Unit Hacks 2 | . 1 . 1 Retrieve Components 2 | . 1 . 1 Scanalyzer . | . . . . Garrison Access Hacks . | . . . . Unauthorized Hacks 7 | . 3 . 4 Terminals 2 | . 1 . 1 Botnet 2 | . 1 . 1 Fabricators . | . . . . Repair Stations . | . . . . Recycling Units 5 | . 2 . 3 Tunnel 5 | . 2 . 3 Scanalyzers . | . . . . Garrison Access . | . . . . Data Cores Recovered . | . . . . Used . | . . . . Hacking Detections 6 | . 2 . 4 Full Trace Events . | . . . . Feedback Events . | . . . . Feedback Blocked . | . . . . Robot Schematics Acquired . | . . . . Robots Built . | . . . . Authchips . | . . . . Time . | . . . . Total Robot Build Rating . | . . . . Part Schematics Acquired 1 | . . . 1 Parts Built . | . . . . Authchips . | . . . . Time . | . . . . Total Part Build Rating . | . . . . Parts Repaired . | . . . . Time . | . . . . Parts Recycled . | . . . . Recycled Matter . | . . . . Retrieved Matter . | . . . . Retrieved Components 4 | . 2 . 2 Parts Scanalyzed . | . . . . Part Schematics Acquired . | . . . . Parts Damaged . | . . . . Bothacking | -11 -10 -10 -7 ------------ Run | Yrd Mat Sub Rec Used RIF Installer . | . . . . Robots Hacked . | . . . . Non-combat . | . . . . Combat . | . . . . Robot Hacks Applied . | . . . . Relay Couplers Released . | . . . . Fabnet Peak Effective % . | . . . . Robots Rewired . | . . . . Allies Hacked . | . . . . Hacks Repelled . | . . . . Allies | -11 -10 -10 -7 -------- Run | Yrd Mat Sub Rec Total Allies . | . . . . Largest Group . | . . . . Highest-Rated Group . | . . . . Highest-Rated Ally . | . . . . Total Orders . | . . . . Ally Attacks . | . . . . Total Damage . | . . . . Kills . | . . . . Allies Corrupted . | . . . . Allies Melted . | . . . . Intel | -11 -10 -10 -7 ------- Run | Yrd Mat Sub Rec Active Infowar (turns) . | . . . . Robot Analysis Total . | . . . . Derelict Logs Recovered . | . . . . Drone Launches . | . . . . Drone Recoveries . | . . . . Exploration | -11 -10 -10 -7 ------------- Run | Yrd Mat Sub Rec Turns Passed 2583 | 57 1241 537 748 Spaces Moved 1402 | 32 652 279 439 Core 4 | 4 . . . Treads 1398 | 28 652 279 439 Legs . | . . . . Wheels . | . . . . Hover . | . . . . Flight . | . . . . Fastest Speed 50 | 50 160 160 160 Average Speed 159 | 146 160 160 160 Slowest Speed 240 | 160 160 240 160 Overloaded Moves . | . . . . Propulsion Burnouts . | . . . . Robots Hopped . | . . . . Potential Cave-ins . | . . . . Cave-ins Triggered . | . . . . Exploration Rate (%) 45 | 4 82 18 76 Regions Visited 3 Branch Regions 2 Pre-discovered Areas 5 | . 2 . 3 Known Exits Taken . | . . . . Unknown Exits Taken 3 | 1 1 1 . Scrap Searched . | . . . . Spaces Dug 22 | . . 22 . Terrain Destroyed 112 | . 18 68 26 Melee . | . . . . Projectile 1 | . . . 1 AOE 111 | . 18 68 25 Terrain Rammed . | . . . . Walls Destroyed . | . . . . Machines Disabled . | . . . . Actions | -11 -10 -10 -7 --------- Run | Yrd Mat Sub Rec Total 1618 | 39 792 316 471 Wait 84 | . 84 . . Move 1399 | 31 651 278 439 Hop . | . . . . Pick Up 28 | 2 15 2 9 Fast Attach 12 | 6 5 1 . Attach 6 | . 1 2 3 Detach . | . . . . Swap 12 | . 5 4 3 Drop 12 | . 3 1 8 Fire 59 | . 28 22 9 Melee 6 | . . 6 . Ram . | . . . . Kick . | . . . . Crush . | . . . . Escape Stasis . | . . . . Rewire . | . . . . Trap . | . . . . Miscellaneous . | . . . . Route ------- -11/Scrapyard -10/Materials (discovered 5 exits: [*Mat x3] / [*Min] / *Sub) -10/Subcaves (discovered 2 exits: [*Mat] / *Rec) -7/Recycling History --------- Turn | Location | Event 28 | -11/Scrapyard | Discovered new exit (range 16) 58 | -11/Scrapyard | Entered Materials 214 | -10/Materials | Discovered new exit (range 4) 301 | -10/Materials | Build established: Mutant 418 | -10/Materials | Discovered new exit (range 4) 578 | -10/Materials | Discovered new exit (range 10) 649 | -10/Materials | Discovered new exit (range 15) 1278 | -10/Materials | Discovered new exit (range 5) 1299 | -10/Materials | Entered Subcaves 1578 | -10/Subcaves | Visited 4L-MR0's lab 1595 | -10/Subcaves | Found Gun Armor 1660 | -10/Subcaves | Discovered new exit (range 3) 1801 | -10/Subcaves | Discovered new exit (range 14) 1836 | -10/Subcaves | Entered Recycling 2203 | -7/Recycling | Core integrity fell below 50% 2576 | -7/Recycling | Core integrity fell below 20% 2584 | -7/Recycling | Destroyed by Y-54 Guardian with Flak Gun Last Messages --------------- 02367_ Connecting with Terminal... >>Trojan(Botnet) Trojan loaded successfully. Testing... Terminal linked with 0 systems. Awaiting botnet instructions. >>Schematic(Hacking Suite) Downloading schematic... Hacking Suite Rating: 3 Schematic downloaded. 02559_ Connecting with Recycling Unit... >>Force(Tunnel) DISCOVERED[-3/Testing] 02572_ Y-54 Guardian springs to life. 02572_ Lgt. Treads destroyed. 02581_ Rocket Launcher destroyed. 02581_ Hvy. Laser destroyed. 02581_ Lgt. Treads destroyed. 02582_ The unstable cave ceiling collapses. Map ----- +----------------------------------------------------+ | ??????????????????????###### ## | | ????????????????####???????###### % | | ????????????????# #################### | | ????????????????# | | ????????????????# ### | | ????????????????# """ """ """ #?? | | ????????????????# """ """ """ #?? | | ????????????????# """ """ """ #?? | | ????????????????# ### | | ????????????????# # | | ????????????????# #%% | | ??????????##????# # ! | | ???????? ## #% | | ????????? + #### # | | ???????????" ### #??# # | | ?????????????????# #### # | | ?????????????????# ##"" #?? | | ?????????????????# ##"Y ### | | ?????????????????# ##"" | | ??#????????????### #### | | ??# "?????????#"" #########?# | | ???? ???????#"Y # ?# ### | | ?????? ?????#"" / # ## | | ????????? ???### # # ## | | ????????#### #### # + + | | ????????# @ + # ### | | ??????# #+###### # #?# | | ?????# ???# ?# #?# | | ?????# Y #??# ?# #?# | | ?????# # Y # #??# ######??# ### | | ???? ## #????????##??# ""# | | ???# ### #?# #??####### ### Y"## | | ???# ??? ??+ r??# # ""#? | | ???# #???## ??# ##??# # ###? | | ???#??????## #??# #???# # #??? | | ???????????# ???# #???# ! ! # #### | | ???????????# ???# #???# + | | ???????????# ???# #???# # | | ???????????#????# #???# =# | | ????????????????? #???# [ # | | ?????????????????### #???# ! # "" | | ????????????????????#????########## """ | | ??????????????????????????????????# """ | | ??????????????????????????????????# """ | | ??????????????????????????????????# "" | | ??????????????????????????????????# | | ??????????????????????????????????# | | ??????????????????????????????????# | | ??????????????????????????????????# | | ??????????????????????????????????# | +----------------------------------------------------+ Best States ------------- Heat Dissipation 25 Energy Generation 10 Energy Capacity 250 Matter Stores 300 Matter Capacity 300 Sight Range 16 Terrain Scan Density 10 Core Shielding 20 Evasion (%) 40 Recoil Reduction 2 Authchip Count 4 Item Schematics ----------------- Hacking Suite | -7/Recycling | Hacked Robot Schematics ------------------ None Fabricated ------------ Nothing Repaired ---------- Nothing Alien Tech Used ----------------- None Achievements -------------- None Challenges ------------ None Game ------ Seed GunUltimateScreen Manual? 0 Play Time 00:21:33 Cumulative 224.6 hours Start 2025.05.30 @ 23:04:48 End 2025.05.30 @ 23:27:11 Sessions 1 Manual Loads 0 Difficulty Rogue Special Mode None Game No. 212 Rogue 212 Adventurer 0 Explorer 0 Win Type - Total 1 Types 1/0/0/0/0/0/0/0/0/0 Lore% 73 Gallery% 60 Achievement% 49 Wizard Run 0 Options --------- Layout 1 ASCII 0 Keyboard 0 Movement Mouse Keybinds 0 Fullscreen 1 Font 24/Smallcaps Map View 50x35 Zoom Use 0% Tactical HUD 1 Map Filters NONE Filters NONE Steam 1 RUN: 544d06bf-5992-4d45-9cd3-f17571cbfb56